bitfinex/quotes_SOLUSD_20250308
["timestamp","ask_amount","ask_price","bid_price","bid_amount"]
[1741397053690,7.1606,140.24,140.23,20.89294051]
[1741397054008,0.03,140.24,140.23,20.89294051]
[1741397058004,0.03,140.24,140.23,28.522048]
[1741397058204,0.03,140.27,140.23,170.253148]
[1741397058407,0.03,140.27,140.26,20.89294051]
[1741397073526,0.03,140.27,140.26,28.02254051]
[1741397073829,0.03,140.27,140.26,20.89294051]
[1741397074728,0.03,140.27,140.26,28.02254051]
[1741397075225,0.03,140.27,140.26,20.89294051]
[1741397076325,0.03,140.31,140.26,192.29352406]
[1741397076504,0.03,140.31,140.3,20.89294051]
[1741397079700,0.03,140.31,140.29,6.58]
[1741397080626,0.03,140.31,140.27,20.89294051]
[1741397081120,0.03,140.31,140.28,20.89294051]
[1741397081316,6.3814,140.31,140.27,20.89294051]
[1741397081627,6.3814,140.31,140.28,20.89294051]
[1741397081831,7.1275,140.3,140.28,20.89294051]
[1741397083026,0.03,140.31,140.29,27.45294051]
[1741397083230,0.03,140.31,140.3,20.89294051]
[1741397087325,0.03,140.31,140.3,28.02044051]
[1741397087927,0.03,140.31,140.3,29.0890498]
[1741397088129,0.03,140.31,140.3,28.02044051]
[1741397088445,0.03,140.35,140.3,46.90798195]
[1741397088743,0.03,140.35,140.34,20.89294051]
[1741397092440,0.03,140.35,140.33,20.89294051]
[1741397093138,0.03,140.35,140.34,20.89294051]
[1741397096239,0.03,140.35,140.33,20.89294051]
[1741397097232,0.03,140.35,140.3,6.56]
[1741397097534,0.03,140.35,140.31,20.89294051]
[1741397098034,0.03,140.35,140.32,20.89294051]
[1741397100733,0.03,140.35,140.3,20.89294051]
[1741397100936,0.03,140.35,140.3,20.92594051]
[1741397101129,0.03,140.35,140.31,20.89294051]
[1741397101449,7.155,140.35,140.31,20.89294051]
[1741397101645,7.155,140.35,140.32,20.89294051]
[1741397102027,7.155,140.35,140.33,20.89294051]
[1741397102544,7.155,140.35,140.32,20.89294051]
[1741397103756,0.03,140.35,140.3,0.033]
[1741397103959,0.03,140.35,140.31,20.89294051]
[1741397104556,0.03,140.35,140.3,20.92594051]
[1741397105340,0.03,140.35,140.3,0.033]
[1741397105548,6.2526,140.34,140.3,0.033]
[1741397105862,7.1265,140.32,140.3,0.033]
[1741397106838,28.01944051,140.32,140.3,0.033]
[1741397107039,1.0693,140.31,140.3,0.033]
[1741397107233,21.96224051,140.31,140.3,0.033]
[1741397107636,21.96224051,140.31,140.24,20.92594051]
[1741397107970,28.02044051,140.3,140.24,20.92594051]
[1741397108135,6.2526,140.29,140.24,20.92594051]
[1741397108336,7.3219,140.29,140.24,20.92594051]
[1741397108564,20.89294051,140.27,140.24,0.033]
[1741397108747,21.96224051,140.27,140.24,0.033]
[1741397109063,20.89294051,140.26,140.24,0.033]
[1741397109283,1.0693,140.25,140.24,0.033]
[1741397109444,21.96224051,140.25,140.24,0.033]
[1741397109642,21.96224051,140.26,140.24,0.033]
[1741397109947,7.1296,140.26,140.24,0.033]
[1741397110272,1.0693,140.25,140.24,0.033]
[1741397110866,29.09184051,140.26,140.24,0.033]
[1741397111664,20.89294051,140.25,140.24,0.033]
[1741397111842,28.02304051,140.25,140.24,0.033]
[1741397112464,28.02304051,140.25,140.24,0.0001]
[1741397114353,20.89294051,140.23,140.22,0.0001]
[1741397114671,21.96224051,140.23,140.22,0.0001]
[1741397116266,29.09334051,140.23,140.22,0.0001]
[1741397116785,30.61174051,140.23,140.22,0.0001]
[1741397116951,36.34999626,140.23,140.22,0.0001]
[1741397117850,36.34999626,140.23,140.15,0.033]
[1741397118047,20.89294051,140.18,140.15,0.033]
[1741397118247,21.96224051,140.17,140.15,0.033]
[1741397119157,20.89294051,140.16,140.15,0.033]
[1741397119363,21.96224051,140.17,140.15,0.033]
[1741397119969,7.1347,140.16,140.15,0.033]
[1741397120777,28.02764051,140.16,140.15,0.033]
[1741397120975,7.1347,140.16,140.15,0.033]
[1741397124078,45.86434051,140.16,140.09,20.92594051]
[1741397124374,20.89294051,140.14,140.09,0.033]
[1741397124679,21.96224051,140.13,140.09,0.033]
[1741397125085,1.0693,140.13,140.09,0.033]
[1741397126073,21.96224051,140.13,140.09,0.033]
[1741397126288,7.1367,140.12,140.09,0.033]
[1741397126578,1.0693,140.11,140.09,0.033]
[1741397126969,21.96224051,140.11,140.09,0.033]
[1741397128274,1.0693,140.11,140.09,0.033]
[1741397128580,21.96224051,140.14,140.09,0.033]
[1741397128958,20.89294051,140.13,140.09,0.033]
[1741397129163,1.0693,140.12,140.09,0.033]
[1741397129864,8.2064,140.12,140.09,0.033]
[1741397131056,8.205,140.14,140.09,20.92594051]
[1741397131256,82.3,140.15,140.11,20.89294051]
[1741397131493,89.4352,140.15,140.11,20.89294051]
[1741397131994,27.99204051,140.16,140.11,20.89294051]
[1741397132289,7.135,140.16,140.12,20.89294051]
[1741397132496,38.72834051,140.18,140.13,20.89294051]
[1741397132497,8.2029,140.18,140.13,20.89294051]
[1741397133401,7.1333,140.19,140.15,20.89294051]
[1741397133701,6.6333,140.19,140.15,20.89294051]
[1741397133903,8.2021,140.2,140.15,20.89294051]
[1741397134073,7.1328,140.2,140.16,20.89294051]
[1741397134274,7.1328,140.2,140.17,20.89294051]
[1741397134775,7.1328,140.2,140.16,20.89294051]
[1741397135404,7.1321,140.21,140.17,20.89294051]
[1741397136604,28.02504051,140.21,140.15,27.39294051]
[1741397136783,29.09434051,140.21,140.15,27.39294051]
[1741397137610,46.95464051,140.21,140.15,6.5]
[1741397137769,20.89294051,140.18,140.12,27.39294051]
[1741397137968,1.0693,140.17,140.12,27.39294051]
[1741397138374,21.96224051,140.17,140.12,6.5]
[1741397140409,7.1347,140.16,140.12,6.5]
[1741397140586,20.89294051,140.14,140.11,0.033]
[1741397140771,21.96224051,140.13,140.11,0.033]
[1741397141103,20.89294051,140.12,140.11,0.033]
[1741397142201,28.02964051,140.12,140.11,0.033]
[1741397142803,7.1367,140.12,140.11,0.033]
[1741397142970,8.206,140.12,140.11,0.033]
[1741397143175,8.205,140.14,140.11,0.033]
[1741397143393,7.1357,140.14,140.11,0.033]
[1741397145997,1.0693,140.18,140.11,20.92594051]
[1741397146200,8.2029,140.18,140.13,20.89294051]
[1741397146612,7.1336,140.18,140.13,20.89294051]
[1741397146778,7.1336,140.18,140.14,20.89294051]
[1741397146979,7.1326,140.2,140.14,20.89294051]
[1741397147180,7.1623,140.21,140.16,20.89294051]
[1741397147481,7.1623,140.21,140.17,20.89294051]
[1741397148216,0.03,140.21,140.17,20.89294051]
[1741397148378,0.03,140.21,140.2,20.89294051]
[1741397149409,0.03,140.21,140.19,20.89294051]
[1741397150086,0.03,140.21,140.2,20.89294051]
[1741397150587,0.03,140.21,140.19,20.89294051]
[1741397151011,0.03,140.21,140.18,20.89294051]
[1741397151308,0.03,140.21,140.19,20.89294051]
[1741397152315,0.03,140.21,140.17,22.46884051]
[1741397154009,1.0993,140.21,140.16,20.89294051]
[1741397154194,21.99224051,140.21,140.16,6.46]
[1741397154514,7.1331,140.19,140.14,27.37294051]
[1741397154712,8.2024,140.19,140.14,27.37294051]
[1741397154908,7.1331,140.19,140.14,27.37294051]
[1741397155604,7.1327,140.2,140.16,20.89294051]
[1741397156013,0.03,140.21,140.18,20.89294051]
[1741397156898,0.03,140.21,140.19,20.89294051]
[1741397157106,0.03,140.21,140.18,20.89294051]
[1741397157419,0.03,140.21,140.19,20.89294051]
[1741397157719,0.03,140.21,140.17,20.89294051]
[1741397159925,21.99224051,140.21,140.13,1.5759]
[1741397160125,20.89294051,140.2,140.14,27.33294051]
[1741397160303,21.96224051,140.19,140.14,6.44]
[1741397160508,20.89294051,140.18,140.14,6.44]
[1741397160698,1.0693,140.17,140.11,20.92594051]
[1741397160904,20.89294051,140.16,140.11,0.033]
[1741397161137,21.96224051,140.15,140.11,0.033]
[1741397161635,7.1357,140.14,140.11,0.033]
[1741397162404,1.0693,140.13,140.11,0.033]
[1741397162931,20.89294051,140.12,140.11,0.033]
[1741397163113,20.89294051,140.12,140.11,0.0001]
[1741397163924,28.02964051,140.12,140.11,0.0001]
[1741397164733,52.33144051,140.12,140.08,0.033]
[1741397164933,20.89294051,140.09,140.08,0.033]
[1741397165428,21.96224051,140.09,140.08,0.033]
[1741397167029,29.10044051,140.09,140.08,0.033]
[1741397168026,50.0,140.08,140.03,0.033]
[1741397168209,20.89294051,140.04,140.03,0.033]
[1741397168819,29.10304051,140.04,140.03,0.033]
[1741397173533,46.95504051,140.04,139.98,0.033]
[1741397173713,20.89294051,140.0,139.98,0.033]
[1741397174221,28.03554051,140.01,139.98,0.033]
[1741397174420,1.0693,140.0,139.98,0.033]
[1741397175430,8.2112,140.02,139.98,0.033]
[1741397175615,1.0693,140.02,139.98,20.92594051]
[1741397175816,90.5106,140.03,139.99,20.89294051]
[1741397176017,8.2106,140.03,139.98,0.033]
[1741397176233,8.2106,140.03,139.98,20.92594051]
[1741397177712,8.2106,140.03,139.98,28.06974051]
[1741397177913,8.2102,140.04,139.99,20.89294051]
[1741397178237,8.2102,140.04,140.0,20.89294051]
[1741397178413,111.40244051,140.06,140.01,20.89294051]
[1741397179231,111.40244051,140.06,140.0,20.89294051]
[1741397179722,89.4402,140.06,140.01,20.89294051]
[1741397180938,1.0693,140.05,140.0,20.89294051]
[1741397181308,21.96224051,140.05,139.99,20.89294051]
[1741397181736,20.89294051,140.04,139.98,27.36594051]
[1741397181920,20.89294051,140.04,139.98,34.50974051]
[1741397182238,21.96224051,140.05,139.99,20.89294051]
[1741397182943,7.1408,140.04,139.99,20.89294051]
[1741397183238,29.10254051,140.05,139.99,28.03614051]
[1741397183419,29.10204051,140.06,140.0,20.89294051]
[1741397184534,20.89294051,140.04,139.98,6.473]
[1741397184738,21.96224051,140.04,139.98,27.36594051]
[1741397184927,7.1413,140.03,139.98,27.36594051]
[1741397185541,7.1413,140.03,139.98,34.50974051]
[1741397185751,21.96224051,140.05,139.99,20.89294051]
[1741397186042,1.0693,140.05,140.0,20.89294051]
[1741397186748,21.96224051,140.05,139.99,20.89294051]
[1741397186950,1.0693,140.05,140.0,20.89294051]
[1741397187126,7.1401,140.06,140.01,20.89294051]
[1741397187517,1.0693,140.07,140.01,20.89294051]
[1741397187843,0.03,140.05,140.03,20.89294051]
[1741397188748,0.03,140.05,140.03,28.03394051]
[1741397189244,0.03,140.05,140.02,20.89294051]
[1741397190547,0.03,140.05,140.04,20.89294051]
[1741397190754,0.03,140.05,140.04,28.03374051]
[1741397193947,29.12834051,140.14,140.04,45.88574051]
[1741397194148,29.12834051,140.14,140.08,20.89294051]
[1741397195553,28.05904051,140.14,140.08,20.89294051]
[1741397196060,8.2059,140.13,140.08,20.89294051]
[1741397198755,7.1366,140.13,140.08,20.89294051]
[1741397199053,7.1366,140.13,140.08,28.03154051]
[1741397199248,7.1366,140.13,140.09,20.89294051]
[1741397200448,7.1366,140.13,140.1,20.89294051]
[1741397200648,0.03,140.14,140.1,20.89294051]
[1741397200948,7.1658,140.14,140.1,20.89294051]
[1741397202336,7.1658,140.14,140.09,20.89294051]
[1741397203033,20.89294051,140.12,140.08,6.44]
[1741397203337,21.96224051,140.13,140.08,6.44]
[1741397204143,46.96734051,140.14,140.08,27.33294051]
[1741397204547,29.12804051,140.14,140.08,34.47164051]
[1741397205253,29.12804051,140.14,140.08,27.33294051]
[1741397205463,20.89294051,140.13,140.08,6.44]
[1741397205958,29.12804051,140.14,140.08,27.33294051]
[1741397206360,29.12804051,140.14,140.08,34.47134051]
[1741397206963,0.03,140.14,140.09,20.89294051]
[1741397207262,7.1657,140.14,140.09,20.89294051]
[1741397207963,7.1657,140.14,140.09,28.03114051]
[1741397209666,0.03,140.14,140.1,20.89294051]
[1741397209964,0.03,140.14,140.13,20.89294051]
[1741397211767,0.03,140.14,140.13,28.02914051]
[1741397211955,0.03,140.14,140.13,36.13214051]
[1741397212559,0.03,140.14,140.13,170.73214051]
[1741397214670,0.03,140.14,140.13,163.59594051]
[1741397216268,0.03,140.14,140.13,28.99594051]
[1741397218176,0.03,140.14,140.13,8.103]
[1741397218377,0.03,140.14,140.13,6.44]
[1741397218683,0.03,140.14,140.09,28.99594051]
[1741397219060,7.1657,140.14,140.09,28.99594051]
[1741397219883,7.1657,140.14,140.09,22.55594051]
[1741397220176,7.1657,140.14,140.1,20.89294051]
[1741397220781,45.89794051,140.14,140.08,6.44]
[1741397220982,45.89794051,140.14,140.08,27.33294051]
[1741397221355,7.1657,140.14,140.09,20.89294051]
[1741397221562,0.03,140.14,140.11,20.89294051]
[1741397222578,7.1659,140.14,140.11,20.89294051]
[1741397222880,0.03,140.14,140.11,20.89294051]
[1741397223254,0.03,140.14,140.12,20.89294051]
[1741397223576,0.03,140.14,140.1,20.89294051]
[1741397223775,0.03,140.14,140.09,20.89294051]
[1741397224183,0.03,140.14,140.1,20.89294051]
[1741397225892,0.03,140.14,140.09,20.89294051]
[1741397227688,0.03,140.14,140.1,20.89294051]
[1741397232195,0.03,140.14,140.1,28.03054051]
[1741397232371,0.03,140.14,140.11,20.89294051]
[1741397232694,0.03,140.14,140.12,20.89294051]
[1741397232878,0.03,140.14,140.13,20.89294051]
[1741397233801,0.03,140.14,140.13,27.33294051]
[1741397233977,0.03,140.14,140.13,34.46914051]
[1741397237004,0.03,140.14,140.12,20.89294051]
[1741397237210,0.03,140.14,140.1,155.49294051]
[1741397237584,0.03,140.14,140.11,20.89294051]
[1741397237783,0.03,140.14,140.12,20.89294051]
[1741397239482,0.03,140.14,140.13,20.89294051]
[1741397241105,0.03,140.14,140.13,28.02914051]
[1741397241609,0.03,140.14,140.13,20.89294051]
[1741397241792,0.03,140.14,140.12,20.89294051]
[1741397243494,0.03,140.14,140.12,28.02954051]
[1741397243819,0.03,140.14,140.13,20.89294051]
[1741397245517,0.03,140.14,140.13,28.02914051]
[1741397247704,0.03,140.14,140.13,50.44948102]
[1741397247886,0.03,140.19,140.18,20.89294051]
[1741397248491,0.03,140.19,140.17,27.31294051]
[1741397249319,0.03,140.19,140.17,6.42]
[1741397251216,0.03,140.19,140.17,27.31294051]
[1741397252811,0.03,140.19,140.18,20.89294051]
[1741397254236,0.03,140.19,140.18,155.49294051]
[1741397254813,0.03,140.21,140.18,164.15394051]
[1741397255004,0.03,140.21,140.2,41.78588102]
[1741397255818,0.03,140.21,140.2,176.38588102]
[1741397256129,0.03,140.23,140.2,182.58868102]
[1741397256425,0.03,140.23,140.22,20.89294051]
[1741397256718,0.03,140.23,140.22,34.44454051]
[1741397257411,0.03,140.29,140.22,34.44454051]
[1741397257725,0.03,140.29,140.28,20.89294051]
[1741397260630,0.03,140.29,140.27,6.42]
[1741397260818,0.03,140.29,140.27,27.31294051]
[1741397261019,0.03,140.29,140.27,6.42]
[1741397263024,0.03,140.29,140.24,20.89294051]
[1741397263326,0.03,140.29,140.23,27.31294051]
[1741397263327,20.92294051,140.29,140.23,27.31294051]
[1741397264213,20.89294051,140.27,140.21,20.89294051]
[1741397264426,21.96224051,140.26,140.2,27.31294051]
[1741397264620,20.89294051,140.26,140.21,20.89294051]
[1741397265127,7.1301,140.25,140.23,20.89294051]
[1741397265828,7.1301,140.25,140.22,20.89294051]
[1741397266001,7.1301,140.25,140.21,20.89294051]
[1741397266203,24.9554,140.25,140.2,27.31294051]
[1741397266831,24.9554,140.25,140.2,20.89294051]
[1741397267123,24.9554,140.25,140.21,20.89294051]
[1741397267306,24.9554,140.25,140.2,20.89294051]
[1741397267507,24.9554,140.25,140.17,1.5681]
[1741397267508,20.89294051,140.24,140.18,20.89294051]
[1741397268129,20.89294051,140.23,140.17,27.31294051]
[1741397268455,21.96224051,140.23,140.17,20.89294051]
[1741397269031,24.9607,140.22,140.17,20.89294051]
[1741397269833,51.95904051,140.22,140.16,27.31294051]
[1741397270827,13.237,140.22,140.19,20.92594051]
[1741397271732,13.237,140.22,140.19,0.033]
[1741397276432,7.1316,140.22,140.19,20.92594051]
[1741397277131,7.1316,140.22,140.2,20.89294051]
[1741397277336,7.1306,140.24,140.2,20.89294051]
[1741397278640,0.03,140.25,140.2,20.89294051]
[1741397278830,7.1601,140.25,140.2,20.89294051]
[1741397280445,7.1601,140.25,140.21,20.89294051]
[1741397280647,7.1601,140.25,140.22,20.89294051]
[1741397281334,7.1601,140.25,140.21,20.89294051]
[1741397281532,0.03,140.25,140.21,20.89294051]
[1741397283126,0.03,140.25,140.2,20.89294051]
[1741397283841,20.89294051,140.23,140.19,0.033]
[1741397284821,1.0693,140.22,140.19,0.033]
[1741397285016,21.96224051,140.22,140.19,0.033]
[1741397285552,34.03064051,140.2,140.13,1.5739]
[1741397285766,20.89294051,140.18,140.13,0.033]
[1741397286562,21.96224051,140.19,140.13,20.92594051]
[1741397287058,14.6486,140.2,140.15,20.89294051]
[1741397287956,6.0051,140.2,140.16,20.89294051]
[1741397288168,6.0051,140.2,140.17,20.89294051]
[1741397288367,7.1317,140.22,140.17,20.89294051]
[1741397288738,28.02464051,140.22,140.16,20.89294051]
[1741397289047,21.96224051,140.21,140.15,27.31294051]
[1741397289240,21.96224051,140.21,140.15,6.42]
[1741397289760,20.89294051,140.22,140.16,20.89294051]
[1741397289961,28.02464051,140.22,140.15,6.42]
[1741397290161,20.89294051,140.2,140.15,6.42]
[1741397290338,21.96224051,140.19,140.15,6.42]
[1741397290539,20.89294051,140.18,140.13,0.033]
[1741397290832,1.0693,140.19,140.13,7.1689]
[1741397291054,24.9608,140.22,140.14,20.89294051]
[1741397291055,20.89294051,140.2,140.14,20.89294051]
[1741397291251,21.96224051,140.19,140.13,20.92594051]
[1741397291459,1.0693,140.21,140.15,20.89294051]
[1741397291665,8.201,140.22,140.16,20.89294051]
[1741397291960,109.19804051,140.23,140.17,20.89294051]
[1741397291961,27.96734051,140.23,140.17,20.89294051]
[1741397292161,35.09854051,140.23,140.17,20.89294051]
[1741397292368,20.89294051,140.22,140.16,20.89294051]
[1741397292669,21.96224051,140.21,140.15,6.42]
[1741397293155,20.89294051,140.2,140.15,6.42]
[1741397293763,21.96224051,140.22,140.15,34.44774051]
[1741397293974,20.89294051,140.21,140.15,6.42]
[1741397294145,20.89294051,140.21,140.15,27.31294051]
[1741397294644,20.89294051,140.21,140.15,6.42]
[1741397295076,20.89294051,140.21,140.15,27.31294051]
[1741397295280,20.89294051,140.21,140.15,34.44794051]
[1741397295583,29.09414051,140.22,140.15,34.48094051]
[1741397296077,29.09414051,140.22,140.15,27.34594051]
[1741397296377,20.89294051,140.21,140.15,27.34594051]
[1741397296995,20.89294051,140.2,140.15,6.453]
[1741397297153,20.89294051,140.18,140.15,6.453]
[1741397297353,20.89294051,140.18,140.15,0.033]
[1741397298149,7.1341,140.17,140.15,0.033]
[1741397299966,7.1338,140.18,140.15,0.033]
[1741397300149,20.89294051,140.2,140.15,0.033]
[1741397300357,7.1331,140.19,140.15,0.033]
[1741397300789,6.0051,140.23,140.16,20.89294051]
[1741397300991,29.09384051,140.22,140.16,20.89294051]
[1741397301373,8.2009,140.22,140.16,20.89294051]
[1741397301587,28.02454051,140.22,140.16,20.89294051]
[1741397303361,28.02454051,140.22,140.15,28.06094051]
[1741397303765,28.02454051,140.22,140.15,20.92594051]
[1741397304286,21.96224051,140.21,140.15,0.033]
[1741397304502,20.89294051,140.2,140.15,0.033]
[1741397304882,28.02454051,140.22,140.15,20.92594051]
[1741397305071,28.02454051,140.22,140.16,20.89294051]
[1741397305988,7.1316,140.22,140.16,20.89294051]
[1741397306179,28.02454051,140.22,140.16,20.89294051]
[1741397306690,29.09384051,140.22,140.16,20.89294051]
[1741397306889,29.09384051,140.22,140.15,20.92594051]
[1741397307292,0.03,140.2,140.15,20.92594051]
[1741397309389,20.92294051,140.2,140.15,0.033]
[1741397309573,20.89294051,140.18,140.15,0.033]
[1741397310669,21.96224051,140.17,140.15,0.033]
[1741397311697,7.1347,140.16,140.15,0.033]
[1741397315575,20.89294051,140.18,140.15,0.033]
[1741397315778,7.1341,140.17,140.15,0.033]
[1741397316274,28.02704051,140.17,140.15,0.033]
[1741397317169,21.96224051,140.16,140.15,0.0001]
[1741397317767,29.09694051,140.16,140.15,0.0001]
[1741397325414,21.59469711,140.16,140.15,0.0001]
[1741397329985,13.39069711,140.11,140.06,136.1198]
[1741397330193,13.39069711,140.11,140.06,1.5198]
[1741397330717,13.39069711,140.1,140.06,1.5198]
[1741397330916,14.45999711,140.1,140.06,1.5198]
[1741397331298,7.1382,140.09,140.06,1.5198]
[1741397332518,20.52889711,140.09,140.05,0.033]
[1741397333702,7.1382,140.09,140.05,0.033]
[1741397333903,7.1379,140.1,140.05,0.033]
[1741397334102,7.1379,140.1,140.05,13.42369711]
[1741397334311,1.0693,140.09,140.05,0.033]
[1741397334549,14.45999711,140.09,140.05,0.033]
[1741397335222,13.39069711,140.07,140.05,0.033]
[1741397335531,8.209,140.06,140.05,0.033]
[1741397336814,21.59969711,140.06,140.05,0.033]
[1741397338835,21.59929711,140.07,140.05,0.033]
[1741397339044,8.2086,140.07,140.05,0.033]
[1741397339635,21.59889711,140.08,140.05,0.033]
[1741397340015,13.39069711,140.07,140.05,0.033]
[1741397340823,20.53019711,140.07,140.05,0.033]
[1741397345114,14.45999711,140.06,140.05,0.033]
[1741397345934,20.52949711,140.08,140.05,0.033]
[1741397347349,14.45999711,140.07,140.05,0.033]
[1741397348060,1.0693,140.09,140.05,0.033]
[1741397348356,14.45999711,140.12,140.06,13.39069711]
[1741397348652,13.39069711,140.11,140.05,15.07329711]
[1741397348824,13.39069711,140.08,140.05,0.033]
[1741397349020,14.45999711,140.07,140.05,0.033]
[1741397349349,7.1397,140.06,140.05,0.033]
[1741397349875,38.37979711,140.06,140.03,0.033]
[1741397350155,13.39069711,140.04,140.03,0.033]
[1741397350361,14.45999711,140.05,140.03,0.033]
[1741397351156,7.1397,140.06,140.03,0.033]
[1741397351327,8.2086,140.07,140.03,0.033]
[1741397351529,7.1393,140.07,140.03,0.033]
[1741397352766,22.01606499,140.09,140.03,22.62936499]
[1741397353058,1.0693,140.09,140.04,20.94676499]
[1741397353383,20.94676499,140.08,140.03,1.6826]
[1741397353547,22.01606499,140.07,140.03,1.6826]
[1741397353954,20.94676499,140.06,140.03,0.033]
[1741397354158,22.01606499,140.05,140.03,0.033]
[1741397354472,20.94676499,140.04,140.03,0.033]
[1741397354968,28.08756499,140.04,140.03,0.033]
[1741397360982,28.08756499,140.04,140.03,0.0001]
[1741397361176,82.3,140.03,140.0,0.0001]
[1741397361377,41.89352998,140.01,139.99,0.0131]
[1741397361681,42.96282998,140.0,139.99,0.0131]
[1741397361884,29.15886499,140.0,139.99,0.0131]
[1741397363176,50.10562998,140.0,139.99,0.0131]
[1741397363379,100.10562998,140.0,139.99,0.0131]
[1741397363775,50.10562998,140.0,139.99,0.0131]
[1741397364173,29.15886499,140.0,139.99,0.0131]
[1741397371985,50.10562998,140.0,139.99,0.0131]
[1741397374005,29.15886499,140.0,139.99,0.0131]
[1741397375497,1.0693,140.0,139.99,0.0131]
[1741397377814,29.15886499,140.0,139.99,0.0131]
[1741397379117,29.18886499,140.0,139.99,0.0131]
[1741397380301,1.0993,140.0,139.99,0.0131]
[1741397380810,0.03,140.0,139.99,0.0131]
[1741397383937,0.03,140.05,139.99,28.52644823]
[1741397384252,0.03,140.05,140.03,20.95634823]
[1741397384819,0.03,140.05,140.04,22.47714823]
[1741397385851,0.03,140.05,140.04,29.61794823]
[1741397387717,1.0693,140.12,140.05,6.56]
[1741397387914,1.0693,140.12,140.06,27.37634823]
[1741397388143,29.16234823,140.12,140.06,27.37634823]
[1741397388540,20.95634823,140.08,140.04,1.5208]
[1741397388948,20.95634823,140.09,140.04,1.5208]
[1741397389245,1.0693,140.08,140.04,1.5208]
[1741397389657,1.0693,140.08,140.04,22.47714823]
[1741397389850,7.1377,140.11,140.06,20.95634823]
[1741397391755,7.1377,140.11,140.07,20.95634823]
[1741397392245,7.1377,140.11,140.06,27.37634823]
[1741397392559,28.09404823,140.11,140.06,6.42]
[1741397392733,7.1377,140.11,140.06,27.37634823]
[1741397393149,28.09404823,140.11,140.06,6.42]
[1741397393533,7.1377,140.11,140.07,20.95634823]
[1741397394352,7.1377,140.11,140.06,6.42]
[1741397394555,7.1377,140.11,140.07,20.95634823]
[1741397395456,7.1377,140.11,140.06,6.42]
[1741397395661,28.09404823,140.11,140.06,6.42]
[1741397396159,7.1377,140.11,140.06,27.37634823]
[1741397396557,7.1377,140.11,140.04,1.5208]
[1741397396853,20.95634823,140.06,140.03,0.033]
[1741397397152,1.0693,140.05,140.03,0.033]
[1741397397361,7.1408,140.04,140.03,0.033]
[1741397398160,8.2097,140.05,140.03,0.033]
[1741397398477,1.0693,140.07,140.03,0.033]
[1741397399664,8.209,140.07,140.03,0.033]
[1741397399968,7.1397,140.07,140.03,0.033]
[1741397401470,22.02564823,140.08,140.03,0.033]
[1741397401678,8.2081,140.08,140.04,20.95634823]
[1741397401877,8.2081,140.08,140.03,0.033]
[1741397402078,20.95634823,140.05,140.03,0.033]
[1741397402372,22.02564823,140.04,140.03,0.033]
[1741397403249,1.0693,140.04,140.03,0.033]
[1741397404449,22.02564823,140.04,140.03,0.033]
[1741397405659,1.0693,140.04,140.03,0.033]
[1741397405973,8.2101,140.04,140.03,0.033]
[1741397407082,29.16644823,140.04,140.03,0.033]
[1741397408068,8.2101,140.04,140.03,0.033]
[1741397408279,1.0693,140.04,140.03,0.033]
[1741397408492,0.03,140.05,140.03,0.033]
[1741397408672,1.0993,140.05,140.03,0.033]
[1741397409273,8.2396,140.05,140.03,0.033]
[1741397410963,0.03,140.05,140.04,20.95634823]
[1741397411185,0.03,140.05,140.03,22.61644823]
[1741397411389,0.03,140.05,140.03,1.6601]
[1741397411693,0.03,140.05,140.03,22.61644823]
[1741397411873,0.03,140.05,140.03,1.6601]
[1741397412211,1.0993,140.05,140.03,1.6601]
[1741397412407,1.0993,140.05,140.03,0.033]
[1741397413206,0.03,140.05,140.03,0.033]
[1741397414000,7.1703,140.05,140.03,0.033]
[1741397414190,1.0693,140.04,140.03,0.033]
[1741397414622,7.1703,140.05,140.03,0.033]
[1741397414623,1.0993,140.05,140.03,0.033]